fUST/lending_fUST_20250926
["ID","MTS","AMOUNT","RATE_DAILY","PERIOD"]
[387807801,1758885040769,-480.0,0.00038356,30]
[387807802,1758885040779,-480.0,0.00038356,30]
[387807803,1758885040788,-482.41276034,0.00038356,30]
[387807804,1758885040797,-480.0,0.00038356,30]
[387807805,1758885040814,-480.0,0.00038356,30]
[387807806,1758885040824,-480.0,0.00038356,30]
[387807807,1758885040833,-480.0,0.00038356,30]
[387807808,1758885040844,-908.36,0.00038356,30]
[387807809,1758885040854,-480.0,0.00038356,30]
[387807810,1758885040863,-480.0,0.00038356,30]
[387807811,1758885040872,-789.4,0.00038356,30]
[387807812,1758885040881,-480.0,0.00038356,30]
[387807813,1758885040890,-480.0,0.00038356,30]
[387807814,1758885040900,-480.0,0.00038356,30]
[387807815,1758885040909,-480.0,0.00038356,30]
[387807816,1758885040918,-480.0,0.00038356,30]
[387807817,1758885040927,-480.0,0.00038356,30]
[387807818,1758885040937,-266.79692547,0.00038356,30]
[387807819,1758885040946,-480.0,0.00038356,30]
[387807820,1758885040956,-1272.94,0.00038356,30]
[387807821,1758885040967,-480.0,0.00038356,30]
[387807822,1758885040976,-480.0,0.00038356,30]
[387807823,1758885040985,-1619.46,0.00038356,30]
[387807824,1758885040994,-480.0,0.00038356,30]
[387807825,1758885041004,-1109.43,0.00038356,30]
[387807826,1758885041013,-480.0,0.00038356,30]
[387807827,1758885041022,-2062.18,0.00038356,30]
[387807828,1758885041031,-862.79,0.00038356,30]
[387807829,1758885041041,-480.0,0.00038356,30]
[387807830,1758885041050,-480.0,0.00038356,30]
[387807831,1758885041058,-487.79798462,0.00038356,30]
[387807832,1758885041067,-480.0,0.00038356,30]
[387807833,1758885041076,-480.0,0.00038356,30]
[387807834,1758885041086,-480.0,0.00038356,30]
[387807835,1758885041095,-556.02352444,0.00038356,30]
[387807836,1758885041104,-1071.62,0.00038356,30]
[387807837,1758885041113,-480.0,0.00038356,30]
[387807838,1758885041122,-480.0,0.00038356,30]
[387807839,1758885041131,-480.0,0.00038356,30]
[387807840,1758885041141,-491.27986542,0.00038356,30]
[387807841,1758885041150,-480.0,0.00038356,30]
[387807842,1758885041160,-480.0,0.00038356,30]
[387807843,1758885041169,-480.0,0.00038356,30]
[387807844,1758885041178,-916.03,0.00038356,30]
[387807845,1758885041187,-480.0,0.00038356,30]
[387807846,1758885041197,-873.76,0.00038356,30]
[387807847,1758885041206,-480.0,0.00038356,30]
[387807848,1758885041216,-693.77,0.00038356,30]
[387807849,1758885041226,-480.0,0.00038356,30]
[387807850,1758885041235,-847.32,0.00038356,30]
[387807851,1758885041244,-480.0,0.00038356,30]
[387807852,1758885041253,-480.0,0.00038356,30]
[387807853,1758885041262,-740.05,0.00038356,30]
[387807854,1758885041271,-485.26,0.00038356,30]
[387807855,1758885041281,-480.0,0.00038356,30]
[387807856,1758885041293,-480.0,0.00038356,30]
[387807857,1758885041303,-480.0,0.00038356,30]
[387807858,1758885041312,-480.0,0.00038356,30]
[387807859,1758885041322,-480.0,0.00038356,30]
[387807860,1758885041331,-795.8,0.00038356,30]
[387807861,1758885041342,-1940.74,0.00038356,3]
[387807862,1758885041358,-480.0,0.00038356,30]
[387807863,1758885041368,-652.24,0.00038356,30]
[387807864,1758885041378,-480.0,0.00038356,30]
[387807865,1758885041388,-1036.86,0.00038356,21]
[387807866,1758885041398,-887.6,0.00038356,30]
[387807867,1758885041408,-1282.86,0.00038356,30]
[387807868,1758885041418,-260.80667552,0.00038356,30]
[387807869,1758885041427,-480.0,0.00038356,30]
[387807870,1758885041437,-1060.87,0.00038356,30]
[387807871,1758885041447,-1400.61,0.00038356,30]
[387807872,1758885041456,-480.0,0.00038356,30]
[387807873,1758885041466,-480.0,0.00038356,30]
[387807874,1758885041475,-480.0,0.00038356,30]
[387807875,1758885041484,-480.0,0.00038356,30]
[387807876,1758885041495,-480.0,0.00038356,30]
[387807877,1758885041504,-480.0,0.00038356,30]
[387807878,1758885041513,-1785.32,0.00038356,30]
[387807879,1758885041612,-1397.65,0.00038356,30]
[387807880,1758885041622,-1080.26,0.00038356,30]
[387807881,1758885041631,-480.0,0.00038356,30]
[387807882,1758885041640,-480.0,0.00038356,30]
[387807883,1758885041650,-480.0,0.00038356,30]
[387807884,1758885041659,-480.0,0.00038356,30]
[387807885,1758885041669,-480.0,0.00038356,30]
[387807886,1758885041679,-4244.97,0.00038356,30]
[387807887,1758885041688,-485.42533477,0.00038356,30]
[387807888,1758885041697,-480.0,0.00038356,30]
[387807889,1758885041707,-5529.23,0.00038356,30]
[387807890,1758885041717,-480.0,0.00038356,30]
[387807891,1758885041727,-480.0,0.00038356,30]
[387807892,1758885041736,-480.0,0.00038356,30]
[387807893,1758885041746,-480.0,0.00038356,30]
[387807894,1758885041756,-503.11,0.00038356,30]
[387807895,1758885041765,-480.0,0.00038356,30]
[387807896,1758885041775,-480.0,0.00038356,30]
[387807897,1758885041784,-480.0,0.00038356,30]
[387807898,1758885041793,-480.0,0.00038356,30]
[387807899,1758885041802,-480.0,0.00038356,30]
[387807900,1758885041811,-480.0,0.00038356,30]
[387807901,1758885041820,-1319.26,0.00038356,30]
[387807902,1758885041830,-480.0,0.00038356,30]
[387807903,1758885041839,-480.0,0.00038356,30]
[387807904,1758885041849,-956.43,0.00038356,30]
[387807905,1758885041858,-480.0,0.00038356,30]
[387807907,1758885041868,-955.47,0.00038356,30]
[387807908,1758885041877,-1004.1,0.00038356,30]
[387807909,1758885041886,-480.0,0.00038356,30]
[387807910,1758885041895,-480.0,0.00038356,30]
[387807911,1758885041905,-480.0,0.00038356,30]
[387807912,1758885041914,-480.0,0.00038356,30]
[387807913,1758885041924,-480.0,0.00038356,30]
[387807914,1758885041934,-480.0,0.00038356,30]
[387807915,1758885041943,-1143.81,0.00038356,30]
[387807916,1758885041954,-535.44459126,0.00038356,30]
[387807917,1758885041964,-480.0,0.00038356,30]
[387807918,1758885041974,-4358.65,0.00038356,30]
[387807919,1758885041983,-1158.94859,0.00038356,2]
[387807920,1758885041993,-460.0,0.00038444,2]
[387807921,1758885042003,-160.0,0.00038486,2]
[387807922,1758885042013,-160.0,0.00038506,2]
[387807923,1758885042022,-160.0,0.00038506,2]
[387807924,1758885042032,-319.20775017,0.0003853,2]
[387807925,1758885042043,-7501.6006701,0.0003853,2]
[387807926,1758885042053,-800.0,0.00038552,7]
[387807927,1758885042063,-691.91053659,0.0003857,7]
[387807928,1758885042073,-1330.65,0.0003862,30]
[387807929,1758885042083,-4024.32871858,0.0003862,3]
[387807930,1758885042093,-3352.75433986,0.0003862,3]
[387807931,1758885042103,-800.0,0.00038626,7]
[387807932,1758885042113,-1330.65,0.00038629,30]
[387807933,1758885042122,-1330.65,0.00038629,30]
[387807934,1758885042131,-1330.65,0.00038629,30]
[387807935,1758885042141,-480.0,0.0003863,30]
[387807936,1758885042151,-152.35,0.0003863,30]
[387807937,1758885042160,-480.0,0.0003863,30]
[387807938,1758885042170,-480.0,0.0003863,30]
[387807939,1758885042179,-316.79536455,0.0003863,30]
[387807940,1758885042189,-397.28598336,0.0003863,30]
[387807941,1758885042199,-1082.48,0.0003863,30]
[387807942,1758885042209,-591.99,0.0003863,30]
[387807943,1758885042218,-480.0,0.0003863,30]
[387807944,1758885042228,-480.0,0.0003863,30]
[387807945,1758885042237,-500.0,0.0003863,30]
[387807946,1758885042247,-480.0,0.0003863,30]
[387807947,1758885042257,-480.0,0.0003863,30]
[387807948,1758885042267,-468.24274041,0.0003863,30]
[387807949,1758885042276,-480.0,0.0003863,30]
[387807950,1758885042286,-480.0,0.0003863,30]
[387807951,1758885042299,-480.0,0.0003863,30]
[387807952,1758885042309,-480.0,0.0003863,30]
[387807953,1758885042318,-480.0,0.0003863,30]
[387807954,1758885042327,-485.98422019,0.0003863,30]
[387807955,1758885042337,-480.0,0.0003863,30]
[387807956,1758885042347,-480.0,0.0003863,30]
[387807957,1758885042358,-945.24,0.0003863,30]
[387807958,1758885042367,-480.0,0.0003863,30]
[387807959,1758885042376,-480.0,0.0003863,30]
[387807960,1758885042386,-480.0,0.0003863,30]
[387807961,1758885042396,-480.0,0.0003863,30]
[387807962,1758885042407,-480.0,0.0003863,30]
[387807963,1758885042416,-485.67256342,0.0003863,30]
[387807964,1758885042426,-480.0,0.0003863,30]
[387807965,1758885042436,-480.0,0.0003863,30]
[387807966,1758885042446,-480.0,0.0003863,30]
[387807967,1758885042455,-480.0,0.0003863,30]
[387807968,1758885042465,-480.0,0.0003863,30]
[387807969,1758885042474,-736.8,0.0003863,30]
[387807970,1758885042484,-551.3,0.0003863,30]
[387807971,1758885042494,-480.0,0.0003863,30]
[387807972,1758885042503,-232.67312693,0.0003863,30]
[387807973,1758885042513,-480.0,0.0003863,30]
[387807974,1758885042523,-480.0,0.0003863,30]
[387807975,1758885042532,-480.0,0.0003863,30]
[387807976,1758885042542,-480.0,0.0003863,30]
[387807977,1758885042552,-480.0,0.0003863,30]
[387807978,1758885042562,-480.0,0.0003863,30]
[387807979,1758885042572,-1009.29,0.0003863,30]
[387807980,1758885042581,-480.0,0.0003863,30]
[387807981,1758885042590,-480.0,0.0003863,30]
[387807982,1758885042600,-222.69692337,0.0003863,30]
[387807983,1758885042610,-480.0,0.0003863,30]
[387807984,1758885042619,-480.0,0.0003863,30]
[387807985,1758885042629,-480.0,0.0003863,30]
[387807986,1758885042639,-581.53714041,0.0003863,30]
[387807987,1758885042648,-255.5240535,0.0003863,30]
[387807988,1758885042658,-537.96,0.0003863,30]
[387807989,1758885042668,-480.0,0.0003863,30]
[387807990,1758885042678,-480.0,0.0003863,30]
[387807991,1758885042687,-525.59,0.0003863,30]
[387807992,1758885042696,-480.0,0.0003863,30]
[387807993,1758885042706,-480.0,0.0003863,30]
[387807994,1758885042716,-487.70542316,0.0003863,30]
[387807995,1758885042725,-480.0,0.0003863,30]
[387807996,1758885042735,-492.4413449,0.0003863,30]
[387807997,1758885042744,-1085.59,0.0003863,30]
[387807998,1758885042754,-480.0,0.0003863,30]
[387807999,1758885042764,-643.6,0.0003863,30]
[387808000,1758885042773,-480.0,0.0003863,30]
[387808002,1758885042783,-480.0,0.0003863,30]
[387808003,1758885042792,-480.0,0.0003863,30]
[387808004,1758885042802,-480.0,0.0003863,30]
[387808005,1758885042812,-1536.59,0.0003863,30]
[387808006,1758885042822,-480.0,0.0003863,30]
[387808007,1758885042832,-654.2,0.0003863,30]
[387808008,1758885042841,-3879.85,0.0003863,30]
[387808009,1758885042852,-480.0,0.0003863,30]
[387808010,1758885042861,-480.0,0.0003863,30]
[387808011,1758885042871,-480.0,0.0003863,30]
[387808012,1758885042880,-908.36,0.0003863,30]
[387808013,1758885042889,-480.0,0.0003863,30]
[387808014,1758885042900,-789.4,0.0003863,30]
[387808015,1758885042910,-480.0,0.0003863,30]
[387808017,1758885042919,-480.0,0.0003863,30]
[387808018,1758885042929,-480.0,0.0003863,30]
[387808019,1758885042938,-480.0,0.0003863,30]
[387808020,1758885042947,-480.0,0.0003863,30]
[387808021,1758885042957,-480.0,0.0003863,30]
[387808022,1758885042967,-1272.94,0.0003863,30]
[387808023,1758885042977,-480.0,0.0003863,30]
[387808024,1758885042986,-480.0,0.0003863,30]
[387808025,1758885042996,-1619.46,0.0003863,30]
[387808026,1758885043006,-480.0,0.0003863,30]
[387808027,1758885043015,-1109.43,0.0003863,30]
[387808028,1758885043024,-480.0,0.0003863,30]
[387808029,1758885043034,-2062.18,0.0003863,30]
[387808030,1758885043044,-862.79,0.0003863,30]
[387808031,1758885043054,-480.0,0.0003863,30]
[387808032,1758885043063,-480.0,0.0003863,30]
[387808033,1758885043073,-480.0,0.0003863,30]
[387808035,1758885043082,-480.0,0.0003863,30]
[387808036,1758885043091,-1071.62,0.0003863,30]
[387808037,1758885043100,-480.0,0.0003863,30]
[387808038,1758885043109,-480.0,0.0003863,30]
[387808039,1758885043119,-480.0,0.0003863,30]
[387808040,1758885043128,-480.0,0.0003863,30]
[387808041,1758885043137,-916.03,0.0003863,30]
[387808042,1758885043146,-480.0,0.0003863,30]
[387808043,1758885043156,-873.76,0.0003863,30]
[387808044,1758885043165,-480.0,0.0003863,30]
[387808045,1758885043174,-480.0,0.0003863,30]
[387808046,1758885043183,-693.77,0.0003863,30]
[387808047,1758885043192,-847.32,0.0003863,30]
[387808048,1758885043201,-527.27923082,0.0003863,30]
[387808049,1758885043210,-480.0,0.0003863,30]
[387808050,1758885043219,-740.05,0.0003863,30]
[387808051,1758885043228,-485.26,0.0003863,30]
[387808052,1758885043238,-480.0,0.0003863,30]
[387808053,1758885043247,-480.0,0.0003863,30]
[387808054,1758885043256,-795.8,0.0003863,30]
[387808055,1758885043265,-1940.74,0.0003863,3]
[387808057,1758885043274,-652.24,0.0003863,30]
[387808058,1758885043283,-480.0,0.0003863,30]
[387808059,1758885043293,-1036.86,0.0003863,21]
[387808060,1758885043305,-887.6,0.0003863,30]
[387808061,1758885043314,-1282.86,0.0003863,30]
[387808062,1758885043323,-480.0,0.0003863,30]
[387808063,1758885043333,-1060.87,0.0003863,30]
[387808064,1758885043342,-1400.61,0.0003863,30]
[387808065,1758885043352,-480.0,0.0003863,30]
[387808066,1758885043361,-480.0,0.0003863,30]
[387808067,1758885043371,-480.0,0.0003863,30]
[387808068,1758885043380,-480.0,0.0003863,30]
[387808069,1758885043390,-480.0,0.0003863,30]
[387808070,1758885043398,-526.5904417,0.0003863,30]
[387808071,1758885043408,-1785.32,0.0003863,30]
[387808072,1758885043416,-1397.65,0.0003863,30]
[387808073,1758885043426,-1080.26,0.0003863,30]
[387808074,1758885043436,-480.0,0.0003863,30]
[387808075,1758885043446,-480.0,0.0003863,30]
[387808076,1758885043455,-493.13013705,0.0003863,30]
[387808077,1758885043465,-4244.97,0.0003863,30]
[387808078,1758885043475,-480.0,0.0003863,30]
[387808079,1758885043484,-5529.23,0.0003863,30]
[387808080,1758885043494,-480.0,0.0003863,30]
[387808081,1758885043503,-480.0,0.0003863,30]
[387808082,1758885043512,-480.0,0.0003863,30]
[387808083,1758885043521,-503.11,0.0003863,30]
[387808085,1758885043530,-480.0,0.0003863,30]
[387808086,1758885043540,-480.0,0.0003863,30]
[387808087,1758885043549,-518.5340896,0.0003863,30]
[387808088,1758885043559,-480.0,0.0003863,30]
[387808089,1758885043568,-480.0,0.0003863,30]
[387808090,1758885043577,-1319.26,0.0003863,30]
[387808091,1758885043586,-480.0,0.0003863,30]
[387808092,1758885043596,-480.0,0.0003863,30]
[387808093,1758885043604,-956.43,0.0003863,30]
[387808094,1758885043614,-480.0,0.0003863,30]
[387808095,1758885043623,-955.47,0.0003863,30]
[387808096,1758885043632,-1004.1,0.0003863,30]
[387808097,1758885043641,-480.0,0.0003863,30]
[387808098,1758885043651,-480.0,0.0003863,30]
[387808099,1758885043660,-480.0,0.0003863,30]
[387808100,1758885043669,-1143.81,0.0003863,30]
[387808101,1758885043757,-503.52159749,0.0003863,30]
[387808102,1758885043767,-4358.65,0.0003863,30]
[387808103,1758885043777,-500.0,0.00038673,5]
[387808104,1758885043786,-500.0,0.00038673,5]
[387808106,1758885043795,-598.66294434,0.00038673,5]
[387808108,1758885043805,-500.0,0.00038673,5]
[387808109,1758885043814,-584.96553603,0.00038673,5]
[387808110,1758885043823,-449.93720386,0.00038673,5]
[387808111,1758885043832,-509.55569589,0.00038673,5]
[387808112,1758885043841,-500.0,0.00038673,5]
[387808113,1758885043850,-500.0,0.00038673,5]
[387808114,1758885043859,-500.0,0.00038673,5]
[387808115,1758885043868,-580.20644151,0.00038673,5]
[387808116,1758885043877,-500.0,0.00038673,5]
[387808117,1758885043887,-500.0,0.00038673,5]
[387808118,1758885043896,-500.0,0.00038673,5]
[387808119,1758885043905,-500.0,0.00038673,5]
[387808120,1758885043914,-500.0,0.00038673,5]
[387808121,1758885043923,-500.0,0.00038673,5]
[387808122,1758885043932,-500.0,0.00038673,5]
[387808123,1758885043941,-500.0,0.00038673,5]
[387808124,1758885043951,-800.0,0.00038717,7]
[387808125,1758885043960,-160.0,0.00038725,2]
[387808126,1758885043970,-233.71402077,0.00038725,2]
[387808127,1758885043979,-800.0,0.00038754,7]
[387808128,1758885043989,-800.0,0.00038761,7]
[387808129,1758885043999,-800.0,0.00038777,7]
[387808130,1758885044009,-800.0,0.00038788,7]
[387808131,1758885044018,-2012.16435929,0.00038793,3]
[387808132,1758885044027,-1676.37716993,0.00038793,3]
[387808133,1758885044036,-1330.65,0.00038802,30]
[387808134,1758885044045,-2379.8238166,0.00038803,2]
[387808135,1758885044055,-500.0,0.00038803,30]
[387808136,1758885044064,-800.0,0.0003882,7]
[387808137,1758885044072,-800.0,0.00038822,7]
[387808138,1758885044081,-800.0,0.00038833,7]
[387808139,1758885044090,-800.0,0.00038856,7]
[387808140,1758885044099,-319.20775013,0.00038873,2]
[387808141,1758885044109,-800.0,0.00038884,7]
[387808142,1758885044118,-4024.32871858,0.00038894,3]
[387808143,1758885044127,-3352.75433986,0.00038894,3]
[387808144,1758885044136,-1330.65,0.00038903,30]
[387808145,1758885044146,-1330.65,0.00038903,30]
[387808146,1758885044155,-1330.65,0.00038903,30]
[387808147,1758885044165,-1330.65,0.00038903,30]
[387808148,1758885044174,-480.0,0.00038904,30]
[387808149,1758885044183,-2000.0,0.00038904,120]
[387808150,1758885044192,-2000.0,0.00038904,120]
[387808151,1758885044201,-2000.0,0.00038904,120]
[387808152,1758885044211,-2000.0,0.00038904,120]
[387808153,1758885044223,-2000.0,0.00038904,120]
[387808154,1758885044233,-480.0,0.00038904,30]
[387808155,1758885044242,-480.0,0.00038904,30]
[387808156,1758885044251,-2000.0,0.00038904,120]
[387808157,1758885044259,-2000.0,0.00038904,120]
[387808158,1758885044269,-2000.0,0.00038904,120]
[387808159,1758885044278,-1095.647,0.00038904,120]
[387808160,1758885044288,-1082.48,0.00038904,30]
[387808161,1758885044300,-591.99,0.00038904,30]
[387808162,1758885044309,-480.0,0.00038904,30]
[387808163,1758885044318,-480.0,0.00038904,30]
[387808164,1758885044328,-500.0,0.00038904,30]
[387808165,1758885044337,-302.36192939,0.00038904,30]
[387808166,1758885044347,-480.0,0.00038904,30]
[387808167,1758885044356,-480.0,0.00038904,30]
[387808168,1758885044365,-480.0,0.00038904,30]
[387808169,1758885044375,-550.02016717,0.00038904,30]
[387808170,1758885044386,-480.0,0.00038904,30]
[387808171,1758885044395,-480.0,0.00038904,30]
[387808172,1758885044404,-480.0,0.00038904,30]
[387808173,1758885044414,-945.24,0.00038904,30]
[387808174,1758885044423,-480.0,0.00038904,30]
[387808175,1758885044432,-249.16849712,0.00038904,30]
[387808176,1758885044442,-480.0,0.00038904,30]
[387808177,1758885044451,-480.0,0.00038904,30]
[387808178,1758885044460,-480.0,0.00038904,30]
[387808179,1758885044471,-480.0,0.00038904,30]
[387808180,1758885044480,-480.0,0.00038904,30]
[387808181,1758885044489,-736.8,0.00038904,30]
[387808182,1758885044499,-551.3,0.00038904,30]
[387808183,1758885044508,-480.0,0.00038904,30]
[387808184,1758885044517,-480.0,0.00038904,30]
[387808185,1758885044527,-480.0,0.00038904,30]
[387808186,1758885044536,-480.0,0.00038904,30]
[387808187,1758885044545,-480.0,0.00038904,30]
[387808188,1758885044554,-1009.29,0.00038904,30]
[387808189,1758885044564,-524.40061604,0.00038904,30]
[387808190,1758885044573,-480.0,0.00038904,30]
[387808191,1758885044583,-480.0,0.00038904,30]
[387808192,1758885044592,-480.0,0.00038904,30]
[387808193,1758885044601,-480.0,0.00038904,30]
[387808194,1758885044611,-537.96,0.00038904,30]
[387808195,1758885044621,-480.0,0.00038904,30]
[387808196,1758885044630,-480.0,0.00038904,30]
[387808197,1758885044639,-525.59,0.00038904,30]
[387808198,1758885044648,-480.0,0.00038904,30]
[387808199,1758885044658,-480.0,0.00038904,30]
[387808200,1758885044668,-1085.59,0.00038904,30]
[387808201,1758885044677,-480.0,0.00038904,30]
[387808202,1758885044686,-643.6,0.00038904,30]
[387808203,1758885044695,-480.0,0.00038904,30]
[387808204,1758885044704,-480.0,0.00038904,30]
[387808205,1758885044713,-316.4973062,0.00038904,30]
[387808206,1758885044723,-1536.59,0.00038904,30]
[387808207,1758885044732,-654.2,0.00038904,30]
[387808208,1758885044741,-3879.85,0.00038904,30]
[387808209,1758885044751,-480.0,0.00038904,30]
[387808210,1758885044760,-480.0,0.00038904,30]
[387808211,1758885044769,-480.0,0.00038904,30]
[387808212,1758885044778,-908.36,0.00038904,30]
[387808213,1758885044787,-480.0,0.00038904,30]
[387808214,1758885044795,-789.4,0.00038904,30]
[387808215,1758885044804,-480.0,0.00038904,30]
[387808216,1758885044813,-480.0,0.00038904,30]
[387808217,1758885044822,-480.0,0.00038904,30]
[387808218,1758885044832,-480.0,0.00038904,30]
[387808219,1758885044841,-480.0,0.00038904,30]
[387808220,1758885044850,-480.0,0.00038904,30]
[387808221,1758885044859,-1272.94,0.00038904,30]
[387808222,1758885044868,-480.0,0.00038904,30]
[387808223,1758885044877,-480.0,0.00038904,30]
[387808224,1758885044886,-1619.46,0.00038904,30]
[387808225,1758885044896,-480.0,0.00038904,30]
[387808226,1758885044905,-1109.43,0.00038904,30]
[387808227,1758885044914,-480.0,0.00038904,30]
[387808228,1758885044923,-2062.18,0.00038904,30]
[387808229,1758885044932,-862.79,0.00038904,30]
[387808230,1758885044941,-480.0,0.00038904,30]
[387808231,1758885044950,-480.0,0.00038904,30]
[387808232,1758885044959,-480.0,0.00038904,30]
[387808233,1758885044968,-480.0,0.00038904,30]
[387808234,1758885044977,-1071.62,0.00038904,30]
[387808235,1758885044986,-480.0,0.00038904,30]
[387808236,1758885044996,-480.0,0.00038904,30]
[387808237,1758885045005,-480.0,0.00038904,30]
[387808238,1758885045015,-480.0,0.00038904,30]
[387808239,1758885045024,-916.03,0.00038904,30]
[387808240,1758885045033,-480.0,0.00038904,30]
[387808241,1758885045041,-873.76,0.00038904,30]
[387808242,1758885045051,-480.0,0.00038904,30]
[387808243,1758885045060,-480.0,0.00038904,30]
[387808244,1758885045069,-693.77,0.00038904,30]
[387808245,1758885045078,-847.32,0.00038904,30]
[387808246,1758885045088,-480.0,0.00038904,30]
[387808247,1758885045097,-740.05,0.00038904,30]
[387808248,1758885045106,-485.26,0.00038904,30]
[387808249,1758885045115,-480.0,0.00038904,30]
[387808250,1758885045125,-795.8,0.00038904,30]
[387808251,1758885045134,-1940.74,0.00038904,3]
[387808252,1758885045144,-652.24,0.00038904,30]
[387808253,1758885045153,-480.0,0.00038904,30]
[387808254,1758885045162,-1036.86,0.00038904,21]
[387808255,1758885045171,-887.6,0.00038904,30]
[387808256,1758885045180,-1282.86,0.00038904,30]
[387808257,1758885045190,-480.0,0.00038904,30]
[387808258,1758885045199,-1060.87,0.00038904,30]
[387808259,1758885045208,-1400.61,0.00038904,30]
[387808260,1758885045218,-480.0,0.00038904,30]
[387808261,1758885045227,-480.0,0.00038904,30]
[387808262,1758885045237,-1785.32,0.00038904,30]
[387808263,1758885045246,-1397.65,0.00038904,30]
[387808264,1758885045256,-1080.26,0.00038904,30]
[387808265,1758885045265,-540.79338447,0.00038904,30]
[387808266,1758885045275,-4244.97,0.00038904,30]
[387808267,1758885045284,-480.0,0.00038904,30]
[387808268,1758885045298,-5529.23,0.00038904,30]
[387808269,1758885045307,-480.0,0.00038904,30]
[387808270,1758885045316,-480.0,0.00038904,30]
[387808271,1758885045325,-480.0,0.00038904,30]
[387808272,1758885045334,-503.11,0.00038904,30]
[387808273,1758885045343,-480.0,0.00038904,30]
[387808274,1758885045353,-480.0,0.00038904,30]
[387808275,1758885045363,-480.0,0.00038904,30]
[387808276,1758885045373,-480.0,0.00038904,30]
[387808277,1758885045383,-1319.26,0.00038904,30]
[387808278,1758885045392,-480.0,0.00038904,30]
[387808279,1758885045401,-956.43,0.00038904,30]
[387808280,1758885045410,-955.47,0.00038904,30]
[387808281,1758885045420,-1004.1,0.00038904,30]
[387808282,1758885045430,-480.0,0.00038904,30]
[387808283,1758885045439,-480.0,0.00038904,30]
[387808284,1758885045448,-480.0,0.00038904,30]
[387808285,1758885045458,-1143.81,0.00038904,30]
[387808286,1758885045467,-4358.65,0.00038904,30]
[387808287,1758885045477,-1330.65,0.00038967,30]
[387808288,1758885045487,-1330.65,0.00038967,30]
[387808289,1758885045496,-16097.3148743,0.00038968,3]
[387808290,1758885045505,-13411.0173594,0.00038968,3]
[387808291,1758885045514,-1330.65,0.00038977,30]
[387808292,1758885045524,-1330.65,0.00038977,30]
[387808293,1758885045533,-1330.65,0.00038977,30]
[387808294,1758885045544,-1330.65,0.00038977,30]
[387808295,1758885045553,-1330.65,0.00038977,30]
[387808296,1758885045562,-1330.65,0.00038977,30]
[387808297,1758885045572,-1330.65,0.00038977,30]
[387808298,1758885045581,-1330.84145629,0.00038977,30]
[387808299,1758885045590,-314215.94740507,0.00038978,2]
[387808301,1758885045753,-465.5098032,0.00038978,2]
[387808303,1758885045765,-55318.54279173,0.00038978,2]
[387808304,1758885045775,-151.0,0.00038992,3]
[387808305,1758885045784,-151.0,0.00038992,3]
[387808306,1758885045794,-151.0,0.00038992,3]
[387808307,1758885045803,-151.0,0.00038992,3]
[387808308,1758885045813,-560.0,0.00038992,2]
[387808310,1758885045822,-500.56568405,0.00039073,5]
[387808311,1758885045831,-565.83279145,0.00039073,5]